[Event "Titled Tuesday Blitz October 31 Early 2023"]
[White "MMAHDI2013"]
[Black "Xtrmntr78"]
[WhiteElo "2451"]
[BlackElo "2660"]
[Result "0-1"]
[Round "7"]
[TimeControl "180+1"]
[Date "2023.10.31"]
[WhiteClock "0:00:00"]
[BlackClock "0:00:04"]
[Board "74"]

1. c4 {[%clk 0:03:00]}  g6 {[%clk 0:02:53]} 2. Nf3 {[%clk 0:02:58]}  Bg7 {[%clk 0:02:54]} 3. g3 {[%clk 0:02:58]}  b6 {[%clk 0:02:54]} 4. Bg2 {[%clk 0:02:57]}  Bb7 {[%clk 0:02:55]} 5. O-O {[%clk 0:02:56]}  e6 {[%clk 0:02:55]} 6. d4 {[%clk 0:02:56]}  Ne7 {[%clk 0:02:56]} 7. b3 {[%clk 0:02:57]}  d6 {[%clk 0:02:56]} 8. Bb2 {[%clk 0:02:58]}  Nd7 {[%clk 0:02:57]} 9. Nc3 {[%clk 0:02:57]}  h6 {[%clk 0:02:57]} 10. e4 {[%clk 0:02:58]}  g5 {[%clk 0:02:58]} 11. d5 {[%clk 0:02:58]}  g4 {[%clk 0:02:47]} 12. Nd2 {[%clk 0:02:56]}  h5 {[%clk 0:02:45]} 13. f3 {[%clk 0:02:53]}  Ne5 {[%clk 0:02:44]} 14. Qe2 {[%clk 0:02:52]}  Qd7 {[%clk 0:02:36]} 15. f4 {[%clk 0:02:31]}  N5g6 {[%clk 0:02:35]} 16. dxe6 {[%clk 0:02:27]}  fxe6 {[%clk 0:02:35]} 17. f5 {[%clk 0:02:27]}  Bd4+ {[%clk 0:02:31]} 18. Kh1 {[%clk 0:02:24]}  Ne5 {[%clk 0:02:23]} 19. fxe6 {[%clk 0:02:23]}  Qc6 {[%clk 0:02:15]} 20. Rad1 {[%clk 0:02:04]}  Bxc3 {[%clk 0:01:59]} 21. Bxc3 {[%clk 0:02:02]}  O-O-O {[%clk 0:01:59]} 22. Nb1 {[%clk 0:01:46]}  N7g6 {[%clk 0:01:47]} 23. Bxe5 {[%clk 0:01:35]}  Nxe5 {[%clk 0:01:47]} 24. Nc3 {[%clk 0:01:35]}  Qe8 {[%clk 0:01:43]} 25. Nd5 {[%clk 0:01:26]}  Qxe6 {[%clk 0:01:39]} 26. Rf6 {[%clk 0:01:26]}  Qd7 {[%clk 0:01:35]} 27. Rdf1 {[%clk 0:01:26]}  h4 {[%clk 0:01:31]} 28. gxh4 {[%clk 0:01:26]}  Rxh4 {[%clk 0:01:30]} 29. Qf2 {[%clk 0:01:15]}  Bxd5 {[%clk 0:01:19]} 30. Qxh4 {[%clk 0:01:10]}  Bc6 {[%clk 0:01:12]} 31. Qh5 {[%clk 0:00:54]}  Kb7 {[%clk 0:01:08]} 32. Qf5 {[%clk 0:00:51]}  Qg7 {[%clk 0:01:06]} 33. b4 {[%clk 0:00:41]}  a6 {[%clk 0:01:02]} 34. Qf4 {[%clk 0:00:36]}  Nxc4 {[%clk 0:00:49]} 35. Rf7 {[%clk 0:00:36]}  Qb2 {[%clk 0:00:44]} 36. Qg5 {[%clk 0:00:36]}  Rc8 {[%clk 0:00:38]} 37. R7f2 {[%clk 0:00:36]}  Qxb4 {[%clk 0:00:37]} 38. Qf4 {[%clk 0:00:33]}  Ne5 {[%clk 0:00:34]} 39. Rc2 {[%clk 0:00:29]}  Ba4 {[%clk 0:00:32]} 40. Rd2 {[%clk 0:00:27]}  Bb5 {[%clk 0:00:27]} 41. Rfd1 {[%clk 0:00:24]}  Bc6 {[%clk 0:00:21]} 42. Rd4 {[%clk 0:00:25]}  Qa3 {[%clk 0:00:19]} 43. Qd2 {[%clk 0:00:24]}  Nf3 {[%clk 0:00:18]} 44. Qd3 {[%clk 0:00:15]}  Qxa2 {[%clk 0:00:15]} 45. Bxf3 {[%clk 0:00:13]}  gxf3 {[%clk 0:00:15]} 46. Qxf3 {[%clk 0:00:14]}  Rh8 {[%clk 0:00:14]} 47. Qg3 {[%clk 0:00:14]}  Qe2 {[%clk 0:00:13]} 48. Re1 {[%clk 0:00:14]}  Qc2 {[%clk 0:00:11]} 49. Qg2 {[%clk 0:00:13]}  Qc3 {[%clk 0:00:10]} 50. Qd2 {[%clk 0:00:13]}  Qf3+ {[%clk 0:00:08]} 51. Qg2 {[%clk 0:00:13]}  Qf6 {[%clk 0:00:09]} 52. Rd2 {[%clk 0:00:11]}  Rh7 {[%clk 0:00:07]} 53. Rf2 {[%clk 0:00:11]}  Qe5 {[%clk 0:00:06]} 54. Qf3 {[%clk 0:00:06]}  Re7 {[%clk 0:00:06]} 55. Qf4 {[%clk 0:00:06]}  Bxe4+ {[%clk 0:00:04]} 56. Kg1 {[%clk 0:00:03]}  Rg7+ {[%clk 0:00:05]} 57. Kf1 {[%clk 0:00:03]}  Bd3+ {[%clk 0:00:05]} 58. Ree2 {[%clk 0:00:00]}  Bxe2+ {[%clk 0:00:04]} 0-1


[Site "https://www.chess.com"]

[Event "Titled Tuesday Blitz October 31 Early 2023"]
[White "Kuznetsova, Olga"]
[Black "Kuzhylnyi, Oleksandr"]
[WhiteFideId "4191323"]
[BlackFideId "34110500"]
[WhiteElo "2441"]
[BlackElo "2627"]
[Result "0-1"]
[Round "7"]
[TimeControl "180+1"]
[Date "2023.10.31"]
[WhiteClock "0:00:54"]
[BlackClock "0:01:34"]
[Board "76"]

1. d4 {[%clk 0:02:22]}  g6 {[%clk 0:03:00]} 2. Bf4 {[%clk 0:02:19]}  Bg7 {[%clk 0:02:59]} 3. e3 {[%clk 0:02:20]}  d6 {[%clk 0:03:00]} 4. h4 {[%clk 0:02:19]}  e5 {[%clk 0:03:00]} 5. dxe5 {[%clk 0:02:19]}  dxe5 {[%clk 0:03:01]} 6. Qxd8+ {[%clk 0:02:19]}  Kxd8 {[%clk 0:03:01]} 7. Bg3 {[%clk 0:02:19]}  Be6 {[%clk 0:02:55]} 8. Nd2 {[%clk 0:02:06]}  Nd7 {[%clk 0:02:54]} 9. Bc4 {[%clk 0:02:06]}  Bxc4 {[%clk 0:02:53]} 10. Nxc4 {[%clk 0:02:06]}  f6 {[%clk 0:02:53]} 11. h5 {[%clk 0:02:06]}  Ke7 {[%clk 0:02:51]} 12. O-O-O {[%clk 0:02:02]}  Nh6 {[%clk 0:02:50]} 13. Ne2 {[%clk 0:02:00]}  Nf5 {[%clk 0:02:49]} 14. e4 {[%clk 0:01:57]}  Nd6 {[%clk 0:02:49]} 15. Nxd6 {[%clk 0:01:56]}  cxd6 {[%clk 0:02:49]} 16. h6 {[%clk 0:01:51]}  Bf8 {[%clk 0:02:48]} 17. Rd2 {[%clk 0:01:51]}  Ke6 {[%clk 0:02:45]} 18. Nc3 {[%clk 0:01:47]}  Nb6 {[%clk 0:02:44]} 19. b3 {[%clk 0:01:45]}  Rc8 {[%clk 0:02:42]} 20. Kb2 {[%clk 0:01:43]}  f5 {[%clk 0:02:37]} 21. f3 {[%clk 0:01:43]}  Rc6 {[%clk 0:02:27]} 22. Bf2 {[%clk 0:01:43]}  Nd7 {[%clk 0:02:18]} 23. Nd5 {[%clk 0:01:40]}  a6 {[%clk 0:02:19]} 24. g4 {[%clk 0:01:37]}  fxe4 {[%clk 0:02:06]} 25. fxe4 {[%clk 0:01:37]}  Nf6 {[%clk 0:02:01]} 26. Nxf6 {[%clk 0:01:36]}  Kxf6 {[%clk 0:02:02]} 27. g5+ {[%clk 0:01:12]}  Ke6 {[%clk 0:01:55]} 28. Be3 {[%clk 0:01:11]}  Be7 {[%clk 0:01:46]} 29. Rf1 {[%clk 0:01:10]}  Rf8 {[%clk 0:01:46]} 30. Rxf8 {[%clk 0:01:05]}  Bxf8 {[%clk 0:01:47]} 31. c4 {[%clk 0:01:05]}  Be7 {[%clk 0:01:45]} 32. a4 {[%clk 0:01:04]}  Rc8 {[%clk 0:01:42]} 33. Rf2 {[%clk 0:01:04]}  Rf8 {[%clk 0:01:35]} 34. Rxf8 {[%clk 0:01:03]}  Bxf8 {[%clk 0:01:36]} 35. Kc3 {[%clk 0:01:01]}  Kd7 {[%clk 0:01:36]} 36. Bb6 {[%clk 0:01:01]}  Be7 {[%clk 0:01:34]} 37. b4 {[%clk 0:00:54]}  Bxg5 {[%clk 0:01:34]} 0-1


[Site "https://www.chess.com"]

[Event "Titled Tuesday Blitz October 31 Early 2023"]
[White "Pinheiro, Iung Alicio de O."]
[Black "Polaczek, Richard"]
[WhiteFideId "2104350"]
[BlackFideId "200026"]
[WhiteElo "2618"]
[BlackElo "2427"]
[Result "1-0"]
[Round "7"]
[TimeControl "180+1"]
[Date "2023.10.31"]
[WhiteClock "0:01:16"]
[BlackClock "0:01:25"]
[Board "77"]

1. d4 {[%clk 0:03:00]}  Nf6 {[%clk 0:02:59]} 2. Nf3 {[%clk 0:03:00]}  d5 {[%clk 0:02:57]} 3. Bg5 {[%clk 0:03:00]}  c5 {[%clk 0:02:54]} 4. e3 {[%clk 0:02:59]}  Qb6 {[%clk 0:02:52]} 5. Nbd2 {[%clk 0:02:56]}  Nc6 {[%clk 0:02:47]} 6. dxc5 {[%clk 0:02:54]}  Qxc5 {[%clk 0:02:46]} 7. c4 {[%clk 0:02:53]}  e5 {[%clk 0:02:30]} 8. Bxf6 {[%clk 0:02:48]}  gxf6 {[%clk 0:02:30]} 9. cxd5 {[%clk 0:02:49]}  Qxd5 {[%clk 0:02:28]} 10. Bc4 {[%clk 0:02:46]}  Qa5 {[%clk 0:02:27]} 11. O-O {[%clk 0:02:45]}  Be6 {[%clk 0:02:17]} 12. Bxe6 {[%clk 0:02:40]}  fxe6 {[%clk 0:02:16]} 13. Qb3 {[%clk 0:02:41]}  Nd8 {[%clk 0:02:16]} 14. Nc4 {[%clk 0:01:52]}  Qa6 {[%clk 0:02:07]} 15. Rfd1 {[%clk 0:01:31]}  Be7 {[%clk 0:01:59]} 16. a4 {[%clk 0:01:24]}  Kf7 {[%clk 0:01:57]} 17. Rd7 {[%clk 0:01:19]}  Qc6 {[%clk 0:01:25]} 18. Nfxe5+ {[%clk 0:01:16]} 1-0


[Site "https://www.chess.com"]

[Event "Titled Tuesday Blitz October 31 Early 2023"]
[White "Ziatdinov, Raset"]
[Black "Karamsetty, Jeevan"]
[WhiteFideId "2015323"]
[BlackFideId "2025337"]
[WhiteElo "2426"]
[BlackElo "2616"]
[Result "1-0"]
[Round "7"]
[TimeControl "180+1"]
[Date "2023.10.31"]
[WhiteClock "0:00:14"]
[BlackClock "0:00:00"]
[Board "78"]

1. e4 {[%clk 0:03:00]}  d6 {[%clk 0:02:54]} 2. d4 {[%clk 0:02:59]}  Nf6 {[%clk 0:02:53]} 3. Nc3 {[%clk 0:02:59]}  e5 {[%clk 0:02:54]} 4. Nf3 {[%clk 0:02:55]}  Nbd7 {[%clk 0:02:53]} 5. Be2 {[%clk 0:02:55]}  Be7 {[%clk 0:02:53]} 6. O-O {[%clk 0:02:55]}  O-O {[%clk 0:02:50]} 7. Re1 {[%clk 0:02:55]}  exd4 {[%clk 0:02:37]} 8. Nxd4 {[%clk 0:02:54]}  Nc5 {[%clk 0:02:38]} 9. Bf3 {[%clk 0:02:50]}  Re8 {[%clk 0:02:38]} 10. b4 {[%clk 0:02:46]}  Na6 {[%clk 0:02:34]} 11. a3 {[%clk 0:02:42]}  Bf8 {[%clk 0:02:34]} 12. Bb2 {[%clk 0:02:42]}  c6 {[%clk 0:02:30]} 13. Qd2 {[%clk 0:02:26]}  Nc7 {[%clk 0:02:26]} 14. Rad1 {[%clk 0:02:24]}  Ng4 {[%clk 0:02:16]} 15. h3 {[%clk 0:02:09]}  Ne5 {[%clk 0:02:15]} 16. Be2 {[%clk 0:02:09]}  Qh4 {[%clk 0:02:12]} 17. f4 {[%clk 0:01:41]}  Ng6 {[%clk 0:02:08]} 18. Rf1 {[%clk 0:01:41]}  a5 {[%clk 0:01:56]} 19. b5 {[%clk 0:01:25]}  cxb5 {[%clk 0:01:52]} 20. Ndxb5 {[%clk 0:01:19]}  Nxb5 {[%clk 0:01:52]} 21. Bxb5 {[%clk 0:01:19]}  Rd8 {[%clk 0:01:51]} 22. Nd5 {[%clk 0:01:18]}  Ne7 {[%clk 0:01:17]} 23. Ne3 {[%clk 0:00:48]}  d5 {[%clk 0:01:08]} 24. exd5 {[%clk 0:00:31]}  Nf5 {[%clk 0:01:08]} 25. Nxf5 {[%clk 0:00:24]}  Bxf5 {[%clk 0:01:09]} 26. Qf2 {[%clk 0:00:24]}  Qxf2+ {[%clk 0:01:03]} 27. Kxf2 {[%clk 0:00:19]}  Bxc2 {[%clk 0:01:02]} 28. Rd2 {[%clk 0:00:20]}  Be4 {[%clk 0:00:59]} 29. Rfd1 {[%clk 0:00:20]}  Bd6 {[%clk 0:00:58]} 30. a4 {[%clk 0:00:18]}  Bxf4 {[%clk 0:00:55]} 31. Rd4 {[%clk 0:00:19]}  f5 {[%clk 0:00:55]} 32. d6 {[%clk 0:00:18]}  Rac8 {[%clk 0:00:50]} 33. Bc4+ {[%clk 0:00:18]}  Kf8 {[%clk 0:00:48]} 34. d7 {[%clk 0:00:17]}  Rc5 {[%clk 0:00:38]} 35. Ba3 {[%clk 0:00:18]}  b6 {[%clk 0:00:39]} 36. Bxc5+ {[%clk 0:00:17]}  bxc5 {[%clk 0:00:40]} 37. Rxe4 {[%clk 0:00:17]}  fxe4 {[%clk 0:00:39]} 38. Bb5 {[%clk 0:00:17]}  Ke7 {[%clk 0:00:38]} 39. Rd5 {[%clk 0:00:17]}  Bd6 {[%clk 0:00:35]} 40. Ke3 {[%clk 0:00:17]}  g6 {[%clk 0:00:29]} 41. Kxe4 {[%clk 0:00:17]}  Ke6 {[%clk 0:00:28]} 42. Rd3 {[%clk 0:00:16]}  Be7 {[%clk 0:00:27]} 43. Rf3 {[%clk 0:00:16]}  Bh4 {[%clk 0:00:18]} 44. Rd3 {[%clk 0:00:16]}  Be7 {[%clk 0:00:18]} 45. Bc4+ {[%clk 0:00:16]}  Kf6 {[%clk 0:00:17]} 46. Rf3+ {[%clk 0:00:16]}  Kg5 {[%clk 0:00:16]} 47. Be6 {[%clk 0:00:16]}  c4 {[%clk 0:00:12]} 48. Rc3 {[%clk 0:00:15]}  Kf6 {[%clk 0:00:11]} 49. Kd5 {[%clk 0:00:13]}  Rb8 {[%clk 0:00:06]} 50. Rxc4 {[%clk 0:00:13]}  Bd8 {[%clk 0:00:07]} 51. Rc8 {[%clk 0:00:13]}  Rb1 {[%clk 0:00:02]} 52. Rxd8 {[%clk 0:00:13]}  Rd1+ {[%clk 0:00:03]} 53. Kc6 {[%clk 0:00:13]}  Rc1+ {[%clk 0:00:02]} 54. Kd6 {[%clk 0:00:13]}  Rd1+ {[%clk 0:00:00]} 55. Bd5 {[%clk 0:00:14]} 1-0


[Site "https://www.chess.com"]

[Event "Titled Tuesday Blitz October 31 Early 2023"]
[White "Hoang, Thi Bao Tram"]
[Black "Kovalevsky, Stanislav"]
[WhiteFideId "12401102"]
[BlackFideId "13508598"]
[WhiteElo "2586"]
[BlackElo "2389"]
[Result "0-1"]
[Round "7"]
[TimeControl "180+1"]
[Date "2023.10.31"]
[WhiteClock "0:02:32"]
[BlackClock "0:02:39"]
[Board "82"]

1. d4 {[%clk 0:02:55]}  d5 {[%clk 0:02:59]} 2. c4 {[%clk 0:02:54]}  c6 {[%clk 0:02:59]} 3. Nc3 {[%clk 0:02:52]}  Nf6 {[%clk 0:02:59]} 4. Nf3 {[%clk 0:02:52]}  e6 {[%clk 0:02:56]} 5. e3 {[%clk 0:02:48]}  Ne4 {[%clk 0:02:50]} 6. Nxe4 {[%clk 0:02:42]}  dxe4 {[%clk 0:02:50]} 7. Ne5 {[%clk 0:02:42]}  Nd7 {[%clk 0:02:43]} 8. Qg4 {[%clk 0:02:35]}  Nxe5 {[%clk 0:02:38]} 9. dxe5 {[%clk 0:02:35]}  Bb4+ {[%clk 0:02:39]} 10. Ke2 {[%clk 0:02:32]}  Qd3# {[%clk 0:02:39]} 0-1


[Site "https://www.chess.com"]

[Event "Titled Tuesday Blitz October 31 Early 2023"]
[White "Omelja, Artem"]
[Black "Seresin, Francesco"]
[WhiteFideId "14119846"]
[BlackFideId "886335"]
[WhiteElo "2578"]
[BlackElo "2388"]
[Result "1/2-1/2"]
[Round "7"]
[TimeControl "180+1"]
[Date "2023.10.31"]
[WhiteClock "0:00:04"]
[BlackClock "0:00:09"]
[Board "83"]

1. e4 {[%clk 0:03:00]}  d5 {[%clk 0:02:58]} 2. exd5 {[%clk 0:02:59]}  Nf6 {[%clk 0:02:58]} 3. Nc3 {[%clk 0:02:46]}  Nxd5 {[%clk 0:02:57]} 4. Bc4 {[%clk 0:02:47]}  Nb6 {[%clk 0:02:57]} 5. Bb3 {[%clk 0:02:46]}  Nc6 {[%clk 0:02:57]} 6. d4 {[%clk 0:02:42]}  Bf5 {[%clk 0:02:54]} 7. Be3 {[%clk 0:02:33]}  e6 {[%clk 0:02:53]} 8. h3 {[%clk 0:02:30]}  Be7 {[%clk 0:02:53]} 9. Nf3 {[%clk 0:02:30]}  O-O {[%clk 0:02:53]} 10. O-O {[%clk 0:02:29]}  Bf6 {[%clk 0:02:52]} 11. a4 {[%clk 0:02:25]}  a5 {[%clk 0:02:52]} 12. Re1 {[%clk 0:02:12]}  Bg6 {[%clk 0:02:51]} 13. Qd2 {[%clk 0:02:10]}  Bh5 {[%clk 0:02:49]} 14. Ne5 {[%clk 0:02:02]}  Nxe5 {[%clk 0:01:46]} 15. dxe5 {[%clk 0:02:00]}  Bxe5 {[%clk 0:01:45]} 16. Qxd8 {[%clk 0:01:30]}  Rfxd8 {[%clk 0:01:44]} 17. Nb5 {[%clk 0:01:29]}  Bd6 {[%clk 0:01:27]} 18. g4 {[%clk 0:01:18]}  Bg6 {[%clk 0:01:27]} 19. Rad1 {[%clk 0:01:19]}  Nd5 {[%clk 0:01:26]} 20. Bxd5 {[%clk 0:00:46]}  exd5 {[%clk 0:01:27]} 21. Nxd6 {[%clk 0:00:46]}  Rxd6 {[%clk 0:01:26]} 22. Bf4 {[%clk 0:00:45]}  Rd7 {[%clk 0:01:26]} 23. c4 {[%clk 0:00:40]}  d4 {[%clk 0:01:20]} 24. Rd2 {[%clk 0:00:39]}  c5 {[%clk 0:01:16]} 25. b3 {[%clk 0:00:23]}  f6 {[%clk 0:01:16]} 26. Rde2 {[%clk 0:00:10]}  Kf7 {[%clk 0:01:01]} 27. Kg2 {[%clk 0:00:10]}  Bd3 {[%clk 0:00:55]} 28. Rd2 {[%clk 0:00:10]}  Bg6 {[%clk 0:00:54]} 29. Rde2 {[%clk 0:00:10]}  Ra6 {[%clk 0:00:50]} 30. h4 {[%clk 0:00:08]}  h5 {[%clk 0:00:48]} 31. f3 {[%clk 0:00:08]}  Rb6 {[%clk 0:00:46]} 32. Re8 {[%clk 0:00:03]}  Rxb3 {[%clk 0:00:41]} 33. Bd6 {[%clk 0:00:04]}  Bd3 {[%clk 0:00:33]} 34. gxh5 {[%clk 0:00:03]}  Rb2+ {[%clk 0:00:27]} 35. Kg3 {[%clk 0:00:04]}  Re2 {[%clk 0:00:27]} 36. R1xe2 {[%clk 0:00:03]}  Bxe2 {[%clk 0:00:27]} 37. Rf8+ {[%clk 0:00:02]}  Ke6 {[%clk 0:00:27]} 38. Bxc5 {[%clk 0:00:03]}  d3 {[%clk 0:00:26]} 39. Re8+ {[%clk 0:00:03]}  Kf5 {[%clk 0:00:26]} 40. Be3 {[%clk 0:00:01]}  d2 {[%clk 0:00:22]} 41. Bxd2 {[%clk 0:00:02]}  Rxd2 {[%clk 0:00:23]} 42. Re7 {[%clk 0:00:02]}  Bxc4 {[%clk 0:00:22]} 43. Rxb7 {[%clk 0:00:02]}  Bf1 {[%clk 0:00:17]} 44. Ra7 {[%clk 0:00:02]}  Rg2+ {[%clk 0:00:16]} 45. Kh3 {[%clk 0:00:02]}  Ra2+ {[%clk 0:00:16]} 46. Kg3 {[%clk 0:00:03]}  Rg2+ {[%clk 0:00:13]} 47. Kh3 {[%clk 0:00:03]}  Rg1+ {[%clk 0:00:12]} 48. Kh2 {[%clk 0:00:03]}  Rg2+ {[%clk 0:00:09]} 49. Kh3 {[%clk 0:00:04]} 1/2-1/2


[Site "https://www.chess.com"]

[Event "Titled Tuesday Blitz October 31 Early 2023"]
[White "brm72"]
[Black "Dmitrenko, Viktor"]
[BlackFideId "14110270"]
[WhiteElo "2577"]
[BlackElo "2379"]
[Result "1-0"]
[Round "7"]
[TimeControl "180+1"]
[Date "2023.10.31"]
[WhiteClock "0:00:41"]
[BlackClock "0:00:02"]
[Board "84"]

1. d4 {[%clk 0:03:00]}  d5 {[%clk 0:02:59]} 2. c4 {[%clk 0:03:00]}  e6 {[%clk 0:02:58]} 3. Nf3 {[%clk 0:03:00]}  c5 {[%clk 0:02:55]} 4. Nc3 {[%clk 0:02:53]}  Nc6 {[%clk 0:02:54]} 5. cxd5 {[%clk 0:02:53]}  exd5 {[%clk 0:02:54]} 6. g3 {[%clk 0:02:52]}  Nf6 {[%clk 0:02:53]} 7. Bg2 {[%clk 0:02:52]}  cxd4 {[%clk 0:02:53]} 8. Nxd4 {[%clk 0:02:52]}  Bc5 {[%clk 0:02:54]} 9. Nb3 {[%clk 0:02:47]}  Bb6 {[%clk 0:02:54]} 10. O-O {[%clk 0:02:48]}  d4 {[%clk 0:02:54]} 11. Ne4 {[%clk 0:02:47]}  Nxe4 {[%clk 0:02:41]} 12. Bxe4 {[%clk 0:02:48]}  O-O {[%clk 0:02:41]} 13. Bg2 {[%clk 0:02:47]}  Re8 {[%clk 0:02:40]} 14. Bf4 {[%clk 0:02:46]}  Bg4 {[%clk 0:02:35]} 15. Re1 {[%clk 0:02:41]}  Rc8 {[%clk 0:02:12]} 16. h3 {[%clk 0:02:39]}  Be6 {[%clk 0:02:11]} 17. a3 {[%clk 0:02:25]}  Qd7 {[%clk 0:01:52]} 18. Kh2 {[%clk 0:02:22]}  Bd5 {[%clk 0:01:42]} 19. Nd2 {[%clk 0:02:15]}  Bxg2 {[%clk 0:01:40]} 20. Kxg2 {[%clk 0:02:16]}  h6 {[%clk 0:01:26]} 21. h4 {[%clk 0:02:01]}  Qd5+ {[%clk 0:01:20]} 22. Nf3 {[%clk 0:02:01]}  Rcd8 {[%clk 0:01:12]} 23. Qd3 {[%clk 0:02:00]}  Na5 {[%clk 0:01:07]} 24. b4 {[%clk 0:01:55]}  Nc4 {[%clk 0:00:58]} 25. Rac1 {[%clk 0:01:55]}  Ne5 {[%clk 0:00:49]} 26. Bxe5 {[%clk 0:01:53]}  Rxe5 {[%clk 0:00:49]} 27. Kg1 {[%clk 0:01:48]}  Re6 {[%clk 0:00:46]} 28. Red1 {[%clk 0:01:39]}  Qe4 {[%clk 0:00:30]} 29. Kf1 {[%clk 0:01:29]}  Rde8 {[%clk 0:00:22]} 30. Qxe4 {[%clk 0:01:25]}  Rxe4 {[%clk 0:00:22]} 31. Rc2 {[%clk 0:01:26]}  f6 {[%clk 0:00:12]} 32. Rd3 {[%clk 0:01:26]}  g5 {[%clk 0:00:12]} 33. hxg5 {[%clk 0:01:26]}  hxg5 {[%clk 0:00:13]} 34. Rcd2 {[%clk 0:01:20]}  Rd8 {[%clk 0:00:08]} 35. e3 {[%clk 0:01:19]}  Rc8 {[%clk 0:00:06]} 36. Nxd4 {[%clk 0:01:10]}  Bxd4 {[%clk 0:00:06]} 37. Rxd4 {[%clk 0:01:07]}  Rxd4 {[%clk 0:00:06]} 38. Rxd4 {[%clk 0:01:07]}  Rc3 {[%clk 0:00:06]} 39. Rd8+ {[%clk 0:01:07]}  Kf7 {[%clk 0:00:05]} 40. Rd7+ {[%clk 0:01:07]}  Ke6 {[%clk 0:00:05]} 41. Rxb7 {[%clk 0:01:08]}  Rxa3 {[%clk 0:00:06]} 42. g4 {[%clk 0:01:05]}  Ke5 {[%clk 0:00:05]} 43. Kg2 {[%clk 0:01:05]}  Ra4 {[%clk 0:00:05]} 44. Kf3 {[%clk 0:01:04]}  a5 {[%clk 0:00:03]} 45. Rb5+ {[%clk 0:01:04]}  Ke6 {[%clk 0:00:03]} 46. bxa5 {[%clk 0:01:04]}  Kd6 {[%clk 0:00:01]} 47. Rb6+ {[%clk 0:01:04]}  Ke5 {[%clk 0:00:02]} 48. a6 {[%clk 0:01:03]}  Ra1 {[%clk 0:00:02]} 49. Kg3 {[%clk 0:00:58]}  Ra2 {[%clk 0:00:03]} 50. f4+ {[%clk 0:00:56]}  gxf4+ {[%clk 0:00:03]} 51. exf4+ {[%clk 0:00:57]}  Ke4 {[%clk 0:00:04]} 52. Rxf6 {[%clk 0:00:55]}  Ra3+ {[%clk 0:00:04]} 53. Kh4 {[%clk 0:00:55]}  Ra5 {[%clk 0:00:04]} 54. f5 {[%clk 0:00:54]}  Kf4 {[%clk 0:00:05]} 55. Kh5 {[%clk 0:00:45]}  Ra1 {[%clk 0:00:05]} 56. Rc6 {[%clk 0:00:41]}  Rh1+ {[%clk 0:00:04]} 57. Kg6 {[%clk 0:00:42]}  Kxg4 {[%clk 0:00:03]} 58. f6 {[%clk 0:00:42]}  Ra1 {[%clk 0:00:03]} 59. f7 {[%clk 0:00:41]}  Rf1 {[%clk 0:00:02]} 60. Rc4+ {[%clk 0:00:41]} 1-0


[Site "https://www.chess.com"]

[Event "Titled Tuesday Blitz October 31 Early 2023"]
[White "MIM06"]
[Black "Estrada Nieto, Julian"]
[BlackFideId "5101018"]
[WhiteElo "2205"]
[BlackElo "2519"]
[Result "0-1"]
[Round "7"]
[TimeControl "180+1"]
[Date "2023.10.31"]
[WhiteClock "0:00:00"]
[BlackClock "0:00:08"]
[Board "93"]

1. e4 {[%clk 0:02:37]}  e5 {[%clk 0:02:59]} 2. Nf3 {[%clk 0:02:37]}  Nc6 {[%clk 0:02:59]} 3. Bb5 {[%clk 0:02:38]}  a6 {[%clk 0:02:59]} 4. Ba4 {[%clk 0:02:39]}  Nf6 {[%clk 0:02:59]} 5. d3 {[%clk 0:02:39]}  d6 {[%clk 0:02:58]} 6. c3 {[%clk 0:02:37]}  g6 {[%clk 0:02:58]} 7. O-O {[%clk 0:02:36]}  Bg7 {[%clk 0:02:59]} 8. Re1 {[%clk 0:02:36]}  O-O {[%clk 0:02:59]} 9. d4 {[%clk 0:02:36]}  exd4 {[%clk 0:02:44]} 10. Bxc6 {[%clk 0:02:31]}  bxc6 {[%clk 0:02:42]} 11. cxd4 {[%clk 0:02:32]}  Bg4 {[%clk 0:02:26]} 12. h3 {[%clk 0:02:29]}  Bxf3 {[%clk 0:02:25]} 13. Qxf3 {[%clk 0:02:30]}  Re8 {[%clk 0:02:25]} 14. Nc3 {[%clk 0:02:29]}  Rb8 {[%clk 0:02:24]} 15. Bg5 {[%clk 0:02:25]}  h6 {[%clk 0:02:23]} 16. Bh4 {[%clk 0:02:18]}  g5 {[%clk 0:02:21]} 17. Bg3 {[%clk 0:02:17]}  Rxb2 {[%clk 0:02:21]} 18. e5 {[%clk 0:02:14]}  dxe5 {[%clk 0:01:54]} 19. dxe5 {[%clk 0:02:15]}  Nd5 {[%clk 0:01:52]} 20. Rad1 {[%clk 0:02:13]}  Qe7 {[%clk 0:01:25]} 21. Nxd5 {[%clk 0:02:00]}  cxd5 {[%clk 0:01:25]} 22. Rxd5 {[%clk 0:02:01]}  Rxa2 {[%clk 0:00:59]} 23. Red1 {[%clk 0:02:00]}  Qe6 {[%clk 0:00:58]} 24. Rd7 {[%clk 0:01:48]}  Ra1 {[%clk 0:00:52]} 25. Rxc7 {[%clk 0:01:24]}  Rxd1+ {[%clk 0:00:51]} 26. Qxd1 {[%clk 0:01:25]}  Bxe5 {[%clk 0:00:50]} 27. Bxe5 {[%clk 0:01:25]}  Qxe5 {[%clk 0:00:50]} 28. Ra7 {[%clk 0:01:00]}  Qe1+ {[%clk 0:00:35]} 29. Qxe1 {[%clk 0:00:58]}  Rxe1+ {[%clk 0:00:35]} 30. Kh2 {[%clk 0:00:59]}  Ra1 {[%clk 0:00:36]} 31. Kg3 {[%clk 0:00:55]}  Ra2 {[%clk 0:00:34]} 32. f4 {[%clk 0:00:47]}  Kg7 {[%clk 0:00:22]} 33. fxg5 {[%clk 0:00:41]}  hxg5 {[%clk 0:00:22]} 34. h4 {[%clk 0:00:39]}  gxh4+ {[%clk 0:00:18]} 35. Kxh4 {[%clk 0:00:40]}  Kg6 {[%clk 0:00:17]} 36. g4 {[%clk 0:00:39]}  a5 {[%clk 0:00:17]} 37. Ra6+ {[%clk 0:00:38]}  Kg7 {[%clk 0:00:16]} 38. Kg5 {[%clk 0:00:36]}  a4 {[%clk 0:00:15]} 39. Ra7 {[%clk 0:00:33]}  Ra1 {[%clk 0:00:15]} 40. Kf4 {[%clk 0:00:13]}  a3 {[%clk 0:00:15]} 41. Kg3 {[%clk 0:00:12]}  Kg6 {[%clk 0:00:13]} 42. Ra5 {[%clk 0:00:10]}  a2 {[%clk 0:00:07]} 43. Kg2 {[%clk 0:00:10]}  f6 {[%clk 0:00:07]} 44. Kh2 {[%clk 0:00:10]}  Kh6 {[%clk 0:00:06]} 45. Kg2 {[%clk 0:00:09]}  Kg6 {[%clk 0:00:06]} 46. Kh2 {[%clk 0:00:10]}  Kf7 {[%clk 0:00:07]} 47. Ra6 {[%clk 0:00:08]}  Ke7 {[%clk 0:00:07]} 48. Kg2 {[%clk 0:00:06]}  Kd7 {[%clk 0:00:07]} 49. Kh2 {[%clk 0:00:04]}  Kc7 {[%clk 0:00:08]} 50. Kg2 {[%clk 0:00:04]}  Kb7 {[%clk 0:00:08]} 51. Ra3 {[%clk 0:00:04]}  Kb6 {[%clk 0:00:08]} 52. Kh2 {[%clk 0:00:04]}  Kb5 {[%clk 0:00:08]} 53. Ra8 {[%clk 0:00:04]}  Kc4 {[%clk 0:00:08]} 54. Kg2 {[%clk 0:00:03]}  Kd4 {[%clk 0:00:08]} 55. Kh2 {[%clk 0:00:03]}  Ke4 {[%clk 0:00:09]} 56. Ra4+ {[%clk 0:00:02]}  Ke3 {[%clk 0:00:09]} 57. Kg2 {[%clk 0:00:02]}  Ke2 {[%clk 0:00:08]} 58. Kh2 {[%clk 0:00:00]}  Kf3 {[%clk 0:00:08]} 0-1


[Site "https://www.chess.com"]